bitfinex/quotes_BTCUSD_20250505
["timestamp","ask_amount","ask_price","bid_price","bid_amount"]
[1746442274690,5.04618917,94613.0,94612.0,7.78374641]
[1746442275132,5.04618917,94613.0,94612.0,7.77099452]
[1746442275374,5.04618917,94613.0,94612.0,7.73786452]
[1746442275613,5.04618917,94613.0,94612.0,7.73467652]
[1746442276508,5.04618917,94613.0,94612.0,7.7091726]
[1746442277797,5.04618917,94613.0,94612.0,7.67531693]
[1746442278032,5.07669835,94613.0,94612.0,7.67531693]
[1746442278182,5.07669835,94613.0,94612.0,7.69783377]
[1746442278598,5.07669835,94613.0,94612.0,7.65957753]
[1746442279026,5.07669835,94613.0,94612.0,7.62647753]
[1746442279443,5.07669835,94613.0,94612.0,7.61947753]
[1746442280064,5.07669835,94613.0,94612.0,7.54416056]
[1746442280720,5.07669835,94613.0,94612.0,7.42544456]
[1746442282057,5.07669835,94613.0,94612.0,7.41269158]
[1746442282474,5.07669835,94613.0,94612.0,7.38623245]
[1746442283414,5.07669835,94613.0,94612.0,7.35977332]
[1746442284661,2.89350435,94613.0,94612.0,7.33426738]
[1746442284871,6.47419235,94613.0,94612.0,7.31279102]
[1746442285298,6.96511235,94613.0,94612.0,7.30003805]
[1746442285940,6.96511235,94613.0,94612.0,7.27878295]
[1746442286558,6.96511235,94613.0,94612.0,7.27178295]
[1746442286762,6.47419235,94613.0,94612.0,6.91134295]
[1746442287389,6.47419235,94613.0,94612.0,6.92664295]
[1746442288935,6.47419235,94613.0,94612.0,6.94284295]
[1746442290190,5.81640335,94613.0,94612.0,6.94284295]
[1746442290392,5.70457635,94613.0,94612.0,6.93965495]
[1746442290635,5.70457635,94613.0,94612.0,6.93646695]
[1746442290846,5.49518435,94613.0,94612.0,6.93646695]
[1746442291049,5.49518435,94613.0,94612.0,6.93752262]
[1746442292291,5.49518435,94613.0,94612.0,6.92477013]
[1746442292836,5.49518435,94613.0,94612.0,6.89926533]
[1746442293702,5.49518435,94613.0,94612.0,6.89226533]
[1746442294126,5.49518435,94613.0,94612.0,6.59403133]
[1746442294337,5.49518435,94613.0,94612.0,6.58344768]
[1746442294775,5.49518435,94613.0,94612.0,6.5717852]
[1746442295010,5.49518435,94613.0,94612.0,6.55988667]
[1746442295253,5.98610435,94613.0,94612.0,6.55988667]
[1746442295503,5.98610435,94613.0,94612.0,6.44713411]
[1746442296640,5.98610435,94613.0,94612.0,6.43654801]
[1746442297473,5.49518435,94613.0,94612.0,6.36646801]
[1746442297949,5.49518435,94613.0,94612.0,6.15837401]
[1746442298161,5.46467517,94613.0,94612.0,6.15837401]
[1746442298375,5.38471617,94613.0,94612.0,6.15837401]
[1746442299510,5.34433917,94613.0,94612.0,6.15837401]
[1746442300362,5.22146417,94613.0,94612.0,6.15837401]
[1746442300799,5.22146417,94613.0,94612.0,6.15137401]
[1746442301014,5.22146417,94613.0,94612.0,6.12586879]
[1746442301917,5.22146417,94613.0,94612.0,6.11528171]
[1746442302377,5.18134517,94613.0,94612.0,6.11528171]
[1746442302871,5.18134517,94613.0,94612.0,6.1025291]
[1746442304270,5.18134517,94613.0,94612.0,5.8043021]
[1746442304430,5.21213154,94613.0,94612.0,5.8043021]
[1746442305061,5.21213154,94613.0,94612.0,5.80043467]
[1746442305281,5.21213154,94613.0,94612.0,5.76893467]
[1746442305504,5.21213154,94613.0,94612.0,5.66255867]
[1746442305768,5.21213154,94613.0,94612.0,5.6285458]
[1746442306213,5.21213154,94613.0,94612.0,5.61796139]
[1746442306433,5.21213154,94613.0,94612.0,5.60735922]
[1746442307881,5.21213154,94613.0,94612.0,5.60035922]
[1746442308310,5.21213154,94613.0,94612.0,5.57500094]
[1746442308521,5.21213154,94613.0,94612.0,5.2322967]
[1746442308734,2.89378154,94613.0,94612.0,5.10094374]
[1746442308934,6.47446954,94613.0,94612.0,5.10094374]
[1746442309155,6.09631454,94613.0,94612.0,5.07543658]
[1746442309369,6.07827254,94613.0,94612.0,5.07543658]
[1746442309823,6.07827254,94613.0,94612.0,5.05417708]
[1746442310249,6.07827254,94613.0,94612.0,5.03220167]
[1746442310455,6.07827254,94613.0,94612.0,5.0216153]
[1746442311752,5.90434154,94613.0,94612.0,5.0216153]
[1746442312836,5.86204854,94613.0,94612.0,4.90730216]
[1746442313048,5.86204854,94613.0,94612.0,4.89454858]
[1746442313494,5.72369254,94613.0,94612.0,4.89454858]
[1746442313910,5.69290617,94613.0,94612.0,4.89454858]
[1746442314117,5.61023817,94613.0,94612.0,4.89454858]
[1746442314939,5.61023817,94613.0,94612.0,4.88754858]
[1746442315318,6.10119817,94613.0,94612.0,4.88754858]
[1746442315530,5.85524117,94613.0,94612.0,4.88754858]
[1746442316119,5.71581717,94613.0,94612.0,4.87479493]
[1746442316322,5.22485717,94613.0,94612.0,4.883548]
[1746442317298,5.04524317,94613.0,94612.0,4.85804068]
[1746442318395,4.92489517,94613.0,94612.0,4.85804068]
[1746442319021,4.92489517,94613.0,94612.0,4.84224068]
[1746442319658,4.92489517,94613.0,94612.0,4.85854068]
[1746442320072,4.92489517,94613.0,94612.0,4.84793851]
[1746442320478,4.92489517,94613.0,94612.0,4.86045051]
[1746442320692,4.88618617,94613.0,94612.0,4.85831818]
[1746442320952,5.30278617,94613.0,94612.0,4.85831818]
[1746442321980,5.30278617,94613.0,94612.0,4.85131818]
[1746442322412,4.88618617,94613.0,94612.0,4.85131818]
[1746442323221,4.88618617,94613.0,94612.0,4.81305772]
[1746442323585,4.88618617,94613.0,94612.0,4.80030424]
[1746442323799,4.88618617,94613.0,94612.0,4.78961464]
[1746442324185,4.83630601,94613.0,94612.0,4.7356532]
[1746442324387,5.30278617,94613.0,94612.0,4.7356532]
[1746442324587,5.25290601,94613.0,94612.0,4.7356532]
[1746442324805,5.30278617,94613.0,94612.0,4.7356532]
[1746442325022,4.95371501,94613.0,94612.0,4.7356532]
[1746442325242,5.49455517,94613.0,94612.0,4.7356532]
[1746442325446,5.30669817,94613.0,94612.0,4.7356532]
[1746442325649,4.81573817,94613.0,94612.0,4.63033303]
[1746442326084,4.81573817,94613.0,94612.0,4.61758041]
[1746442327470,4.76585801,94613.0,94612.0,4.61758041]
[1746442327830,4.81573817,94613.0,94612.0,4.61758041]
[1746442328448,4.76585801,94613.0,94612.0,3.61758041]
[1746442328693,4.81573817,94613.0,94612.0,3.61758041]
[1746442329091,4.81573817,94613.0,94612.0,3.60948922]
[1746442329725,4.81573817,94613.0,94612.0,2.60948922]
[1746442333447,4.76585801,94613.0,94612.0,1.60948922]
[1746442333651,4.81573817,94613.0,94612.0,1.59673658]
[1746442335271,5.30669817,94613.0,94612.0,1.59673658]
[1746442335467,5.30669817,94613.0,94612.0,1.59354858]
[1746442336115,4.81573817,94613.0,94612.0,1.58654858]
[1746442336317,4.81573817,94613.0,94612.0,1.5737959]
[1746442336522,4.81573817,94613.0,94612.0,1.52316058]
[1746442337093,4.84764417,94613.0,94612.0,1.52316058]
[1746442337518,4.84764417,94613.0,94612.0,1.38036427]
[1746442337920,4.84764417,94613.0,94612.0,0.38036427]
[1746442338331,4.84764417,94613.0,94612.0,0.20206851]
[1746442338753,4.84775246,94613.0,94612.0,0.20206851]
[1746442339143,4.84775246,94613.0,94612.0,0.01262928]
[1746442340079,0.26127877,94608.0,94607.0,10.99803179]
[1746442340255,3.7757432,94608.0,94607.0,10.99803179]
[1746442340461,3.80522654,94608.0,94607.0,10.99803179]
[1746442340696,3.80522654,94608.0,94607.0,10.97813079]
[1746442341169,4.30522654,94608.0,94607.0,10.97813079]
[1746442341381,4.01837454,94608.0,94607.0,10.97813079]
[1746442341848,3.94513354,94608.0,94607.0,10.97813079]
[1746442342309,4.44513354,94608.0,94607.0,10.99423079]
[1746442343229,4.44513354,94608.0,94607.0,11.00333079]
[1746442343453,4.30277354,94608.0,94607.0,11.00333079]
[1746442343995,4.30277354,94608.0,94607.0,10.99057739]
[1746442345062,1.58346854,94608.0,94607.0,10.89487739]
[1746442345268,5.48418154,94608.0,94607.0,10.89487739]
[1746442345675,5.48418154,94608.0,94607.0,10.86297739]
[1746442345881,5.48418154,94608.0,94607.0,10.83107739]
[1746442346086,4.99322154,94608.0,94607.0,10.79917739]
[1746442346311,4.98891988,94608.0,94607.0,10.75452429]
[1746442346929,4.98891988,94608.0,94607.0,10.73462329]
[1746442347337,4.98891988,94608.0,94607.0,10.70911709]
[1746442347771,5.02082688,94608.0,94607.0,10.67663809]
[1746442347979,5.02082688,94608.0,94607.0,9.91023309]
[1746442348182,5.04975055,94608.0,94607.0,9.91023309]
[1746442348390,5.04975055,94608.0,94607.0,9.61740885]
[1746442350761,5.04975055,94608.0,94607.0,9.61422085]
[1746442351204,5.04975055,94608.0,94607.0,9.60722085]
[1746442351650,5.04975055,94608.0,94607.0,9.58802479]
[1746442352473,5.04975055,94608.0,94607.0,9.57960147]
[1746442352887,4.72854755,94608.0,94607.0,9.57960147]
[1746442353929,4.72854755,94608.0,94607.0,9.56684847]
[1746442355382,3.49785972,94608.0,94607.0,9.56684847]
[1746442355800,1.85119372,94608.0,94607.0,9.56684847]
[1746442356004,5.21723072,94608.0,94607.0,9.56684847]
[1746442356641,1.85119372,94608.0,94607.0,9.56684847]
[1746442356847,5.38150272,94608.0,94607.0,9.55409641]
[1746442357105,5.38150272,94608.0,94607.0,8.55409641]
[1746442358123,5.38150272,94608.0,94607.0,8.54709641]
[1746442358552,5.35911272,94608.0,94607.0,8.54709641]
[1746442358774,4.76734172,94608.0,94607.0,8.54709641]
[1746442359192,4.72977472,94608.0,94607.0,8.54709641]
[1746442359406,4.59945172,94608.0,94607.0,8.54709641]
[1746442360266,4.53213272,94608.0,94607.0,8.54709641]
[1746442361123,4.35615572,94608.0,94607.0,8.54709641]
[1746442361338,4.85615572,94608.0,94607.0,8.54709641]
[1746442361822,4.85615572,94608.0,94607.0,8.53433781]
[1746442364359,4.85615572,94608.0,94607.0,8.52158574]
[1746442364772,4.85615572,94608.0,94607.0,8.30895525]
[1746442365354,5.34707572,94608.0,94607.0,8.29876725]
[1746442365562,4.85615572,94608.0,94607.0,8.29557925]
[1746442366803,4.85615572,94608.0,94607.0,8.28282714]
[1746442367343,4.85615572,94608.0,94607.0,8.25732292]
[1746442371762,4.85615572,94608.0,94607.0,8.25626725]
[1746442372383,4.85615572,94608.0,94607.0,8.24926725]
[1746442372594,4.88423106,94608.0,94607.0,8.24926725]
[1746442374053,4.88423106,94608.0,94607.0,8.13683448]
[1746442375304,4.88423106,94608.0,94607.0,8.16903448]
[1746442375305,5.37511106,94608.0,94607.0,8.16903448]
[1746442375711,5.37511106,94608.0,94607.0,8.14352924]
[1746442377171,5.37511106,94608.0,94607.0,8.13077658]
[1746442378425,4.88423106,94608.0,94607.0,8.13077658]
[1746442379512,4.88423106,94608.0,94607.0,8.12377658]
[1746442379956,4.88423106,94608.0,94607.0,8.07117088]
[1746442380599,4.88423106,94608.0,94607.0,8.06798288]
[1746442381587,4.81449206,94608.0,94607.0,8.06798288]
[1746442383706,4.81449206,94608.0,94607.0,8.04247764]
[1746442384539,2.37926906,94608.0,94607.0,8.02972502]
[1746442384943,5.41790506,94608.0,94607.0,8.02972502]
[1746442385386,5.90882506,94608.0,94607.0,8.02972502]
[1746442386038,6.32542506,94608.0,94607.0,8.02972502]
[1746442386653,6.32542506,94608.0,94607.0,8.02272502]
[1746442386846,5.83450506,94608.0,94607.0,8.02272502]
[1746442387251,5.83450506,94608.0,94607.0,8.0099724]
[1746442389254,5.83450506,94608.0,94607.0,7.99725119]
[1746442389841,5.83450506,94608.0,94607.0,7.99713135]
[1746442390247,5.83450506,94608.0,94607.0,7.95887333]
[1746442391871,5.83450506,94608.0,94607.0,7.93336798]
[1746442393677,5.83450506,94608.0,94607.0,7.92636798]
[1746442394679,5.83450506,94608.0,94607.0,7.91361531]
[1746442395340,6.32542506,94608.0,94607.0,7.91361531]
[1746442395478,6.32542506,94608.0,94607.0,7.91042731]
[1746442395706,5.83450506,94608.0,94607.0,7.83373731]
[1746442395929,5.83450506,94608.0,94607.0,7.621092]
[1746442397136,5.83450506,94608.0,94607.0,7.54577031]
[1746442397350,5.83450506,94608.0,94607.0,7.50131934]
[1746442400222,5.83450506,94608.0,94607.0,7.47581356]
[1746442400641,5.83450506,94608.0,94607.0,7.46881356]
[1746442401057,5.83450506,94608.0,94607.0,7.46876356]
[1746442403597,5.80642972,94608.0,94607.0,7.46876356]
[1746442404005,5.80642972,94608.0,94607.0,7.48416356]
[1746442404971,5.80642972,94608.0,94607.0,7.47141064]
[1746442405399,6.29734972,94608.0,94607.0,7.47141064]
[1746442407508,6.29734972,94608.0,94607.0,7.45865772]
[1746442407717,6.29734972,94608.0,94607.0,7.39799894]
[1746442407916,5.80642972,94608.0,94607.0,7.39799894]
[1746442408547,5.80642972,94608.0,94607.0,7.41449894]
[1746442408717,5.80642972,94608.0,94607.0,7.38899309]
[1746442408936,5.80642972,94608.0,94607.0,7.40459309]
[1746442409721,5.80642972,94608.0,94607.0,7.3967605]
[1746442409941,5.80642972,94608.0,94607.0,7.3755052]
[1746442410616,5.80642972,94608.0,94607.0,7.3723152]
[1746442410848,2.76779372,94608.0,94607.0,7.35105776]
[1746442411069,5.68815772,94608.0,94607.0,7.35105776]
[1746442411902,5.68815772,94608.0,94607.0,7.32980963]
[1746442413190,5.68815772,94608.0,94607.0,7.31706281]
[1746442414825,5.68815772,94608.0,94607.0,7.31006281]
[1746442415168,6.17907772,94608.0,94607.0,7.29731]
[1746442415796,5.68815772,94608.0,94607.0,7.29731]
[1746442416152,5.68815772,94608.0,94607.0,7.29836567]
[1746442416351,5.48787472,94608.0,94607.0,7.29836567]
[1746442416551,5.39206572,94608.0,94607.0,7.29836567]
[1746442416754,4.82496172,94608.0,94607.0,7.2728606]
[1746442417749,4.82496172,94608.0,94607.0,7.26010819]
[1746442417984,4.26622872,94608.0,94607.0,7.26010819]
[1746442418630,4.28076957,94608.0,94607.0,7.26010819]
[1746442418843,4.27547556,94608.0,94607.0,7.26010819]
[1746442419694,4.29727869,94608.0,94607.0,7.26010819]
[1746442420116,4.29727869,94608.0,94607.0,7.16960087]
[1746442420316,4.2929244,94608.0,94607.0,7.12265027]
[1746442420574,4.27547556,94608.0,94607.0,7.10892376]
[1746442420813,4.28920207,94608.0,94607.0,7.10892376]
[1746442421606,2.81076707,94608.0,94607.0,7.10892376]
[1746442422016,7.81076707,94608.0,94607.0,7.10192376]
[1746442422231,7.79704056,94608.0,94607.0,7.10192376]
[1746442422874,7.47713456,94608.0,94607.0,7.10192376]
[1746442423078,7.49455867,94608.0,94607.0,7.10192376]
[1746442423289,7.49455867,94608.0,94607.0,7.08920226]
[1746442424386,7.49455867,94608.0,94607.0,7.07144078]
[1746442424590,5.82518056,94608.0,94607.0,7.0531333]
[1746442424794,5.55186603,94608.0,94607.0,7.03586478]
[1746442425181,5.55186603,94608.0,94607.0,7.01036095]
[1746442425376,5.55186603,94608.0,94607.0,6.99760904]
[1746442425584,5.55186603,94608.0,94607.0,6.99441904]
[1746442425916,5.53603656,94608.0,94607.0,6.93359089]
[1746442426131,5.55037764,94608.0,94607.0,6.91421281]
[1746442427946,5.55037764,94608.0,94607.0,6.90146086]
[1746442428585,5.55037764,94608.0,94607.0,6.88604559]
[1746442429001,5.55037764,94608.0,94607.0,6.87904559]
[1746442430015,5.53603656,94608.0,94607.0,6.86138615]
[1746442430221,5.53603656,94608.0,94607.0,6.82931625]
[1746442430421,5.53603656,94608.0,94607.0,6.82914844]
[1746442431376,5.54976307,94608.0,94607.0,6.82914844]
[1746442432759,5.54976307,94608.0,94607.0,6.82901184]
[1746442433215,5.54976307,94608.0,94607.0,6.81622657]
[1746442433410,5.54976307,94608.0,94607.0,6.79072274]
[1746442434821,5.40451407,94608.0,94607.0,6.79072274]
[1746442435226,5.54475407,94608.0,94607.0,6.79072274]
[1746442435428,5.89539407,94608.0,94607.0,6.77797084]
[1746442435615,5.89539407,94608.0,94607.0,6.76266465]
[1746442436176,5.89539407,94608.0,94607.0,6.75566465]
[1746442436378,2.82076707,94608.0,94607.0,6.75566465]
[1746442436581,5.94957056,94608.0,94607.0,6.75566465]
[1746442436786,5.43597356,94608.0,94607.0,6.75566465]
[1746442436984,5.29613138,94608.0,94607.0,6.75566465]
[1746442438230,5.29613138,94608.0,94607.0,6.74291353]
[1746442440435,5.29613138,94608.0,94607.0,6.70147015]
[1746442440641,5.28214556,94608.0,94607.0,6.70147015]
[1746442441753,5.28214556,94608.0,94607.0,6.6759679]
[1746442442168,5.28343724,94608.0,94607.0,6.6759679]
[1746442443193,5.28343724,94608.0,94607.0,6.6689679]
[1746442443363,5.28214556,94608.0,94607.0,6.6689679]
[1746442443582,5.28214556,94608.0,94607.0,6.66908774]
[1746442444317,5.30038345,94608.0,94607.0,6.66908774]
[1746442444663,4.91823445,94608.0,94607.0,6.66908774]
[1746442444867,4.46761345,94608.0,94607.0,6.66908774]
[1746442445090,4.44937556,94608.0,94607.0,6.66908774]
[1746442445294,4.94021556,94608.0,94607.0,6.66908774]
[1746442445831,4.94391447,94608.0,94607.0,6.65633745]
[1746442445966,4.95845345,94608.0,94607.0,6.65263854]
[1746442446173,4.94021556,94608.0,94607.0,6.65263854]
[1746442446381,4.87944356,94608.0,94607.0,6.65263854]
[1746442447561,3.55187356,94608.0,94607.0,6.65263854]
[1746442448205,3.55187356,94608.0,94607.0,6.63988832]
[1746442448835,3.12977556,94608.0,94607.0,6.63988832]
[1746442449503,2.80704056,94608.0,94607.0,6.63988832]
[1746442449938,3.11606156,94608.0,94607.0,6.63988832]
[1746442450136,3.08128356,94608.0,94607.0,6.63388832]
[1746442450391,3.08128356,94608.0,94607.0,6.60838806]
[1746442454876,3.08128356,94608.0,94607.0,6.20961006]
[1746442455311,3.22152356,94608.0,94607.0,6.20961006]
[1746442455513,3.22152356,94608.0,94607.0,6.20004006]
[1746442455514,3.08128356,94608.0,94607.0,6.20004006]
[1746442455873,3.08128356,94608.0,94607.0,6.18729058]
[1746442456051,3.08128356,94608.0,94607.0,6.18410058]
[1746442456838,3.08128356,94608.0,94607.0,5.54917458]
[1746442457035,3.08128356,94608.0,94607.0,5.48597958]
[1746442457304,3.08128356,94608.0,94607.0,5.4258873]
[1746442458227,3.08128356,94608.0,94607.0,5.37279502]
[1746442458450,3.08128356,94608.0,94607.0,5.36004552]
[1746442458660,3.08122903,94608.0,94607.0,5.36004552]
[1746442459341,3.08122903,94608.0,94607.0,5.35640786]
[1746442464477,2.80698603,94608.0,94607.0,5.34940786]
[1746442464871,3.88884003,94608.0,94607.0,5.34940786]
[1746442465250,4.26809003,94608.0,94607.0,5.34940786]
[1746442465463,4.26809003,94608.0,94607.0,5.34835219]
[1746442465984,4.26809003,94608.0,94607.0,5.33560247]
[1746442466796,3.77733003,94608.0,94607.0,5.33560247]
[1746442467444,3.77733003,94608.0,94607.0,5.31010296]
[1746442468172,3.54967503,94608.0,94607.0,5.31115863]
[1746442468727,3.54967503,94608.0,94607.0,5.29840891]
[1746442470550,3.54967503,94608.0,94607.0,5.29521891]
[1746442472739,3.54967503,94608.0,94607.0,5.28821891]
[1746442473609,3.34702003,94608.0,94607.0,5.28821891]
[1746442473830,3.31351603,94608.0,94607.0,5.28821891]
[1746442474288,3.24522003,94608.0,94607.0,5.28821891]
[1746442474511,3.22238903,94608.0,94607.0,5.28821891]
[1746442475388,3.71314903,94608.0,94607.0,5.28821891]
[1746442475603,3.22238903,94608.0,94607.0,5.26272006]
[1746442475828,2.80698603,94608.0,94607.0,5.26272006]
[1746442476050,3.51776603,94608.0,94607.0,5.26272006]
[1746442476312,3.32861603,94608.0,94607.0,5.24997064]
[1746442476706,3.20761603,94608.0,94607.0,5.24997064]
[1746442477588,3.13725903,94608.0,94607.0,5.24997064]
[1746442478060,3.01965303,94608.0,94607.0,5.21825179]
[1746442478271,3.01965303,94608.0,94607.0,5.20594142]
[1746442478951,3.01965303,94608.0,94607.0,5.19319201]
[1746442479390,2.93498503,94608.0,94607.0,5.19319201]
[1746442479612,2.93498503,94608.0,94607.0,5.18619201]
[1746442483788,2.93498503,94608.0,94607.0,5.16069384]
[1746442485379,3.42574503,94608.0,94607.0,5.16069384]
[1746442485636,2.93498503,94608.0,94607.0,5.15750384]
[1746442485853,2.93498503,94608.0,94607.0,5.14742068]
[1746442486075,2.93498503,94608.0,94607.0,5.11568471]
[1746442486764,2.93498503,94608.0,94607.0,5.08485774]
[1746442487383,2.51838503,94608.0,94607.0,5.08485774]
[1746442488864,3.63086703,94608.0,94607.0,5.07210868]
[1746442489511,3.63086703,94608.0,94607.0,5.06152492]
[1746442491326,3.63086703,94608.0,94607.0,5.06046925]
[1746442491734,2.80698603,94608.0,94607.0,5.03497112]
[1746442492146,3.75372603,94608.0,94607.0,4.98872937]
[1746442492352,3.76957367,94608.0,94607.0,4.98884921]
[1746442492505,3.75164403,94608.0,94607.0,4.83295141]
[1746442493763,3.75164403,94608.0,94607.0,4.82595141]
[1746442493967,3.75164403,94608.0,94607.0,4.79422473]
[1746442494365,3.75164403,94608.0,94607.0,4.77516487]
[1746442495227,3.89184403,94608.0,94607.0,4.80666487]
[1746442497293,3.75164403,94608.0,94607.0,4.80666487]
[1746442498842,3.75164403,94608.0,94607.0,4.80772054]
[1746442499178,3.73175636,94608.0,94607.0,4.79497111]
[1746442499671,3.73175636,94608.0,94607.0,4.76947222]
[1746442500493,3.73175636,94608.0,94607.0,4.76628222]
[1746442500846,3.73175636,94608.0,94607.0,4.75928222]
[1746442504210,3.75166816,94608.0,94607.0,4.75928222]
[1746442505283,3.89186816,94608.0,94607.0,3.74653283]
[1746442505834,3.87808216,94608.0,94607.0,3.74653283]
[1746442506205,3.15554516,94608.0,94607.0,3.74653283]
[1746442506404,2.89986116,94608.0,94607.0,3.74653283]
[1746442507505,2.78461016,94608.0,94607.0,3.74653283]
[1746442507811,2.78461016,94608.0,94607.0,3.73953283]
[1746442508469,2.77006931,94608.0,94607.0,3.73953283]
[1746442509090,2.25015751,94608.0,94607.0,3.72678579]
[1746442511804,2.25015751,94608.0,94607.0,2.72678579]
[1746442513378,2.28458176,94608.0,94607.0,2.72678579]
[1746442515066,2.28458176,94608.0,94607.0,2.71978579]
[1746442515481,2.26469836,94608.0,94607.0,2.71659579]
[1746442515906,2.28457258,94608.0,94607.0,2.71659579]
[1746442517183,2.26469836,94608.0,94607.0,2.71659579]
[1746442520630,2.26469836,94608.0,94607.0,1.71659579]
[1746442521523,2.26469836,94608.0,94607.0,0.71659579]
[1746442521739,2.26666089,94608.0,94607.0,0.71554012]
[1746442521967,2.28862342,94608.0,94607.0,0.68404012]
[1746442522202,3.31622242,94608.0,94607.0,0.67704012]
[1746442523581,3.31622242,94608.0,94607.0,0.66989545]
[1746442523812,3.31229736,94608.0,94607.0,0.66989545]
[1746442524341,3.31543776,94608.0,94607.0,0.66989545]
[1746442525253,3.80301736,94608.0,94607.0,0.66989545]
[1746442526586,3.80301736,94608.0,94607.0,0.70149545]
[1746442528009,3.80615776,94608.0,94607.0,0.70149545]
[1746442528223,3.31543776,94608.0,94607.0,0.70149545]
[1746442528706,3.31229736,94608.0,94607.0,0.70149545]
[1746442528936,3.31229736,94608.0,94607.0,0.66989545]
[1746442529142,3.31229736,94608.0,94607.0,0.66289545]
[1746442529350,3.31229736,94608.0,94607.0,0.64184137]
[1746442529549,3.31571586,94608.0,94607.0,0.64196121]
[1746442530146,3.31229736,94608.0,94607.0,0.64196121]
[1746442530506,3.31229736,94608.0,94607.0,0.63877121]
[1746442531686,3.31229736,94608.0,94607.0,0.62602197]
[1746442533233,3.31229736,94608.0,94607.0,0.61687377]
[1746442535726,3.31229736,94608.0,94607.0,0.61627377]
[1746442536862,3.31229736,94608.0,94607.0,0.60927377]
[1746442537426,3.31229736,94608.0,94607.0,0.62467377]
[1746442539150,3.31229736,94608.0,94607.0,0.64067377]
[1746442541007,3.21249176,94608.0,94607.0,0.64067377]
[1746442541424,3.16601976,94608.0,94607.0,0.6289802]
[1746442541614,3.16601976,94608.0,94607.0,0.6288003]
[1746442541877,3.16601976,94608.0,94607.0,0.61605116]
[1746442543128,3.03997876,94608.0,94607.0,0.61605116]
[1746442543983,2.80457776,94608.0,94607.0,0.60905116]
[1746442545274,3.29533776,94608.0,94607.0,0.60905116]
[1746442545424,3.29533776,94608.0,94607.0,0.60586116]
[1746442546293,2.80457776,94608.0,94607.0,0.60586116]
[1746442548789,2.80457776,94608.0,94607.0,0.59230041]
[1746442551072,2.80457776,94608.0,94607.0,0.58530041]
[1746442551916,2.80460449,94608.0,94607.0,0.55980323]
[1746442552126,2.80460449,94608.0,94607.0,0.53430605]
[1746442555238,2.94480449,94608.0,94607.0,0.53430605]
[1746442557287,2.80460449,94608.0,94607.0,0.53430605]
[1746442557497,2.39040449,94608.0,94607.0,0.53430605]
[1746442558128,2.39040449,94608.0,94607.0,0.52730605]
[1746442558941,2.39033291,94608.0,94607.0,0.52730605]
[1746442559362,2.80453291,94608.0,94607.0,0.52730605]
[1746442560226,2.80453291,94608.0,94607.0,0.50180905]
[1746442560677,2.80453291,94608.0,94607.0,0.49843149]
[1746442562051,2.80453291,94608.0,94607.0,0.48568299]
[1746442562284,2.80453291,94608.0,94607.0,0.47293449]
[1746442563257,2.30453291,94608.0,94607.0,0.47293449]
[1746442563470,2.28999206,94608.0,94607.0,0.47293449]
[1746442565214,2.28999206,94608.0,94607.0,0.46593449]
[1746442566920,2.30453291,94608.0,94607.0,0.46593449]
[1746442568446,2.30453291,94608.0,94607.0,0.42588129]
[1746442571054,2.30453291,94608.0,94607.0,0.42482562]
[1746442571231,2.32051017,94608.0,94607.0,0.42482562]
[1746442571405,2.32051017,94608.0,94607.0,0.39827401]
[1746442571610,2.30453291,94608.0,94607.0,0.39827401]
[1746442571995,2.30453291,94608.0,94607.0,0.36970258]
[1746442572191,2.30453291,94608.0,94607.0,0.3372069]
[1746442573199,2.30453291,94608.0,94607.0,0.33826257]
[1746442573400,2.30453291,94608.0,94607.0,0.33095068]
[1746442573599,2.28999206,94608.0,94607.0,0.33095068]
[1746442574007,2.28999206,94608.0,94607.0,0.38095068]
[1746442575053,2.29295926,94608.0,94607.0,0.38095068]
[1746442575295,2.78367926,94608.0,94607.0,0.38095068]
[1746442575499,2.78071206,94608.0,94607.0,0.37776068]
[1746442576715,2.78071206,94608.0,94607.0,0.35226915]
[1746442576891,2.28999206,94608.0,94607.0,0.35226915]
[1746442577091,2.30453291,94608.0,94607.0,0.35226915]
[1746442577877,0.0529041,94606.0,94602.0,10.71673679]
[1746442578084,0.06671809,94604.0,94603.0,0.00211353]
[1746442578296,0.30671809,94604.0,94603.0,0.00211353]
[1746442578507,0.33860409,94604.0,94603.0,0.00211353]
[1746442578710,0.35851022,94604.0,94603.0,0.0888125]
[1746442578995,0.35851022,94604.0,94603.0,0.00211353]
[1746442579825,0.85851022,94604.0,94603.0,0.00211353]
[1746442580871,0.85851022,94604.0,94603.0,0.03421353]
[1746442582398,0.85851022,94604.0,94603.0,0.02146788]
[1746442582813,1.27721022,94604.0,94603.0,0.02326995]
[1746442585392,1.76785022,94604.0,94603.0,0.02326995]
[1746442585925,1.9792597,94604.0,94603.0,0.02326995]
[1746442586225,1.9792597,94604.0,94603.0,0.01926995]
[1746442586445,1.4886197,94604.0,94603.0,0.01926995]
[1746442588078,1.4886197,94604.0,94603.0,0.00652468]
[1746442591060,1.4886197,94604.0,94603.0,0.02302468]
[1746442592719,1.4886197,94604.0,94603.0,0.0102794]
[1746442593478,1.4886197,94604.0,94603.0,0.0072794]
[1746442595149,1.50459696,94604.0,94603.0,0.0072794]
[1746442595350,0.26425151,94603.0,94602.0,10.71673679]
[1746442595565,0.50425151,94603.0,94602.0,10.71673679]
[1746442595789,0.52022877,94603.0,94602.0,10.71673679]
[1746442596007,0.5401349,94603.0,94602.0,10.71673679]
[1746442596975,1.0401349,94603.0,94602.0,10.71673679]
[1746442597421,1.02415764,94603.0,94602.0,10.71673679]
[1746442598056,1.02415764,94603.0,94602.0,10.70399106]
[1746442598271,1.0401349,94603.0,94602.0,10.67849959]
[1746442598500,1.02415764,94603.0,94602.0,10.67849959]
[1746442598912,1.03869849,94603.0,94602.0,10.67849959]
[1746442600352,1.45739849,94603.0,94602.0,10.67849959]
[1746442600579,1.45739849,94603.0,94602.0,10.67149959]
[1746442600802,1.47337575,94603.0,94602.0,10.67149959]
[1746442601264,1.97337575,94603.0,94602.0,10.67149959]
[1746442602815,1.97337575,94603.0,94602.0,10.6587528]
[1746442603465,2.00517575,94603.0,94602.0,10.6587528]
[1746442603884,1.98919849,94603.0,94602.0,10.6587528]
[1746442605309,2.47983849,94603.0,94602.0,10.6587528]
[1746442605525,2.46433849,94603.0,94602.0,10.6587528]
[1746442607325,1.97369849,94603.0,94602.0,10.6587528]
[1746442607526,1.97369849,94603.0,94602.0,10.6517528]
[1746442607729,1.97369849,94603.0,94602.0,10.62625911]
[1746442608135,1.97369849,94603.0,94602.0,10.61351227]
[1746442610782,1.99069849,94603.0,94602.0,10.61551227]
[1746442611033,2.02258849,94603.0,94602.0,10.61551227]
[1746442611501,2.00628849,94603.0,94602.0,10.61551227]
[1746442612929,2.00628849,94603.0,94602.0,10.60276543]
[1746442613848,2.02328849,94603.0,94602.0,10.60476543]
[1746442614668,2.02328849,94603.0,94602.0,10.59776543]
[1746442615262,2.51396849,94603.0,94602.0,10.59776543]
[1746442616326,2.51396849,94603.0,94602.0,10.57227171]
[1746442617378,2.02328849,94603.0,94602.0,10.57205749]
[1746442618566,2.02328849,94603.0,94602.0,10.55931064]
[1746442619582,2.00338236,94603.0,94602.0,10.55931064]
[1746442619784,2.023277,94603.0,94602.0,10.55931064]
[1746442621657,2.023277,94603.0,94602.0,10.55231064]
[1746442623312,2.023277,94603.0,94602.0,10.5395638]